bitfinex/quotes_BTCUSD_20230404
["timestamp","ask_amount","ask_price","bid_price","bid_amount"]
[1680577457472,0.00207023,27859.0,27858.0,1.72281386]
[1680577458120,0.00207023,27859.0,27858.0,1.96577386]
[1680577460264,0.00207023,27859.0,27858.0,2.1373738]
[1680577460954,0.00207023,27859.0,27858.0,1.96577386]
[1680577461376,0.00207023,27859.0,27858.0,1.96595386]
[1680577461808,0.00207023,27859.0,27858.0,1.96577386]
[1680577462243,7.023e-05,27859.0,27858.0,1.95977386]
[1680577462479,7.023e-05,27859.0,27858.0,1.98777386]
[1680577462686,7.023e-05,27859.0,27858.0,1.95977386]
[1680577462898,7.023e-05,27859.0,27858.0,1.98777386]
[1680577464383,7.023e-05,27859.0,27858.0,2.15932853]
[1680577465741,7.023e-05,27859.0,27858.0,1.98777386]
[1680577466177,7.023e-05,27859.0,27858.0,2.15932406]
[1680577466569,7.023e-05,27859.0,27858.0,1.98777386]
[1680577466714,7.023e-05,27859.0,27858.0,2.14237386]
[1680577466962,7.023e-05,27859.0,27858.0,2.51125376]
[1680577467184,7.023e-05,27859.0,27858.0,2.2540448]
[1680577467811,7.023e-05,27859.0,27858.0,2.48325556]
[1680577468034,0.00107023,27859.0,27858.0,2.50525556]
[1680577468271,0.03687541,27860.0,27859.0,0.4775]
[1680577468508,0.03687541,27860.0,27859.0,1.65802196]
[1680577469391,0.03787541,27860.0,27859.0,1.68002196]
[1680577470058,0.03787541,27860.0,27859.0,1.68852196]
[1680577470746,0.03287541,27860.0,27859.0,1.68852196]
[1680577472803,0.03287541,27860.0,27859.0,1.72498418]
[1680577473006,0.03287541,27860.0,27859.0,1.74293202]
[1680577475215,0.03287541,27860.0,27859.0,2.19803202]
[1680577476528,0.03287541,27860.0,27859.0,2.08008418]
[1680577477998,0.03287541,27860.0,27859.0,2.25955418]
[1680577478826,0.03287541,27860.0,27859.0,1.94935418]
[1680577480749,0.03287541,27860.0,27859.0,2.20674494]
[1680577480996,0.03287541,27860.0,27859.0,2.20656494]
[1680577481433,0.03287541,27860.0,27859.0,2.02709494]
[1680577484713,0.03287541,27860.0,27859.0,1.76988418]
[1680577489531,0.001,27860.0,27859.0,1.76988418]
[1680577491330,0.001,27860.0,27859.0,1.69268418]
[1680577492559,0.00092456,27860.0,27859.0,1.69268418]
[1680577497185,0.00018,27865.0,27863.0,0.3775]
[1680577497370,0.00018,27865.0,27864.0,1.37908483]
[1680577498263,0.00018,27867.0,27864.0,1.37908483]
[1680577498500,0.00018,27867.0,27866.0,0.08579485]
[1680577498721,0.00018,27867.0,27866.0,0.13481985]
[1680577500089,0.00118,27867.0,27866.0,0.14981985]
[1680577502470,0.00118,27867.0,27866.0,0.27851212]
[1680577502695,0.00118,27867.0,27866.0,0.14981985]
[1680577503340,0.00118,27867.0,27866.0,0.27851212]
[1680577503576,0.00118,27867.0,27866.0,0.14981985]
[1680577504029,0.07848,27867.0,27866.0,0.14981985]
[1680577504220,0.07848,27867.0,27866.0,0.27851212]
[1680577504488,0.07848,27867.0,27866.0,0.61648782]
[1680577506212,0.07848,27867.0,27866.0,0.70234044]
[1680577506424,0.07848,27867.0,27866.0,0.61648782]
[1680577506685,0.07848,27867.0,27866.0,1.06956772]
[1680577506907,0.162956,27867.0,27866.0,0.10087182]
[1680577507594,0.162956,27867.0,27866.0,0.015]
[1680577508488,0.162956,27867.0,27866.0,0.10087182]
[1680577510684,0.15578,27867.0,27866.0,0.10087182]
[1680577510883,0.15578,27867.0,27866.0,0.22956409]
[1680577511346,0.30938,27867.0,27866.0,0.10087182]
[1680577512505,0.30938,27867.0,27866.0,0.22956409]
[1680577512721,0.30938,27867.0,27866.0,0.56749189]
[1680577515312,0.30938,27867.0,27866.0,0.56767189]
[1680577515540,0.30938,27867.0,27866.0,0.56749189]
[1680577516395,0.316556,27867.0,27866.0,0.56749189]
[1680577516808,0.30938,27867.0,27866.0,0.56749189]
[1680577517400,0.30913286,27867.0,27866.0,0.56767189]
[1680577522163,2.80230038,27867.0,27866.0,0.01]
[1680577522431,0.2,27864.0,27861.0,0.08604654]
[1680577522699,1.48383201,27863.0,27861.0,0.08622654]
[1680577522970,0.19213981,27863.0,27861.0,0.00018]
[1680577523252,0.03923198,27862.0,27859.0,0.08622654]
[1680577523523,0.3082,27860.0,27859.0,0.08622654]
[1680577523821,0.315378,27860.0,27859.0,0.08622654]
[1680577524068,0.315378,27860.0,27859.0,0.00018]
[1680577524336,0.3677526,27860.0,27858.0,0.10202654]
[1680577524601,0.0725526,27860.0,27859.0,0.001]
[1680577524822,0.3683526,27860.0,27858.0,0.01598]
[1680577525040,0.0855526,27860.0,27859.0,0.001]
[1680577525260,0.3678526,27860.0,27858.0,0.01598]
[1680577525484,0.3099,27859.0,27858.0,0.01598]
[1680577525704,0.331437,27859.0,27858.0,0.01598]
[1680577526831,0.40084956,27859.0,27858.0,0.01598]
[1680577527320,0.42684956,27859.0,27858.0,0.01698]
[1680577527552,0.357437,27859.0,27858.0,0.01698]
[1680577528021,0.511337,27859.0,27858.0,0.01698]
[1680577530793,0.511517,27859.0,27858.0,0.0168]
[1680577531010,0.511517,27859.0,27858.0,0.01698]
[1680577531011,0.511337,27859.0,27858.0,0.01698]
[1680577531235,0.356837,27859.0,27858.0,0.01698]
[1680577532110,0.42379756,27859.0,27858.0,0.01698]
[1680577532354,0.42379756,27859.0,27858.0,0.0168]
[1680577532591,0.42379756,27859.0,27858.0,0.01698]
[1680577532812,0.356837,27859.0,27858.0,0.01698]
[1680577533042,0.356837,27859.0,27858.0,0.01686]
[1680577533043,0.353237,27859.0,27858.0,0.01686]
[1680577533278,0.356837,27859.0,27858.0,0.29185788]
[1680577533497,0.356837,27859.0,27858.0,0.29203788]
[1680577533498,0.342479,27859.0,27858.0,0.29203788]
[1680577535326,0.3353,27859.0,27858.0,0.29203788]
[1680577535549,0.1041,27859.0,27858.0,0.29203788]
[1680577535978,0.1041,27859.0,27858.0,0.32332167]
[1680577536209,0.1041,27859.0,27858.0,0.29203788]
[1680577539569,0.1041,27859.0,27858.0,0.34461688]
[1680577541583,0.1041,27859.0,27858.0,0.29203788]
[1680577542030,0.1041,27859.0,27858.0,0.34370788]
[1680577543921,0.026,27859.0,27858.0,0.34370788]
[1680577546321,0.120759,27859.0,27858.0,0.29203788]
[1680577546553,0.1033,27859.0,27858.0,0.29203788]
[1680577547447,0.1033,27859.0,27858.0,0.34108888]
[1680577547662,0.1033,27859.0,27858.0,0.29203788]
[1680577548552,0.1033,27859.0,27858.0,0.33963888]
[1680577549200,0.1033,27859.0,27858.0,0.064581]
[1680577549423,0.026,27859.0,27858.0,0.08154375]
[1680577549649,0.026,27859.0,27858.0,0.53506192]
[1680577549877,0.026,27859.0,27858.0,0.55088175]
[1680577550091,0.026,27859.0,27858.0,0.73692829]
[1680577550606,0.0773,27865.0,27859.0,0.1]
[1680577550843,0.0773,27865.0,27860.0,0.051628]
[1680577551275,0.0773,27865.0,27860.0,0.051808]
[1680577551494,0.0773,27865.0,27860.0,0.00018]
[1680577551728,0.0773,27865.0,27861.0,0.4464813]
[1680577551948,0.0773,27865.0,27861.0,0.4466613]
[1680577552719,0.0773,27865.0,27862.0,0.04466613]
[1680577554251,0.0773,27865.0,27863.0,0.44785857]
[1680577554499,0.0903,27865.0,27863.0,0.44785857]
[1680577554711,0.0903,27865.0,27863.0,0.44803857]
[1680577555150,0.0773,27865.0,27863.0,0.44803857]
[1680577555368,0.0973,27865.0,27863.0,0.44903857]
[1680577555558,0.0973,27865.0,27863.0,0.44885857]
[1680577556214,0.104477,27865.0,27863.0,0.44885857]
[1680577556895,0.104477,27865.0,27863.0,0.44903857]
[1680577557769,0.104477,27865.0,27863.0,0.44878692]
[1680577558041,0.0973,27865.0,27863.0,0.44878692]
[1680577558496,0.104477,27865.0,27863.0,0.44878692]
[1680577560652,0.0973,27865.0,27863.0,0.44878692]
[1680577561108,0.0973,27865.0,27864.0,0.3853665]
[1680577561332,0.0973,27865.0,27864.0,0.4360285]
[1680577561560,0.0973,27865.0,27864.0,0.3853665]
[1680577562025,0.0773,27865.0,27864.0,0.3853665]
[1680577562492,0.1033,27865.0,27864.0,0.3863665]
[1680577564999,0.026,27865.0,27864.0,0.09885119]
[1680577565231,0.026,27865.0,27864.0,0.58335125]
[1680577565681,0.07748,27868.0,27864.0,0.53511906]
[1680577565910,0.0773,27868.0,27865.0,0.050091]
[1680577566153,0.0773,27868.0,27864.0,0.48450006]
[1680577566370,0.007,27865.0,27864.0,0.48550006]
[1680577566600,0.0773,27868.0,27864.0,0.53391106]
[1680577566827,0.0903,27868.0,27865.0,0.049177]
[1680577567059,0.0903,27868.0,27865.0,0.08689706]
[1680577567335,0.0903,27868.0,27866.0,0.35645949]
[1680577567856,0.0773,27868.0,27866.0,0.35645949]
[1680577568611,0.0973,27868.0,27867.0,0.05135]
[1680577568842,0.0973,27868.0,27866.0,0.35745949]
[1680577569298,0.00018,27869.0,27866.0,0.35645949]
[1680577569520,0.013,27868.0,27867.0,0.051488]
[1680577569783,0.013,27868.0,27867.0,0.048776]
[1680577570230,0.013,27868.0,27867.0,0.40351982]
[1680577570697,0.27652582,27871.0,27867.0,0.40369982]
[1680577570921,0.02,27868.0,27867.0,0.356698]
[1680577571614,0.1773,27871.0,27867.0,0.355698]
[1680577571848,0.1973,27871.0,27867.0,0.356698]
[1680577572081,0.0773,27871.0,27867.0,0.355698]
[1680577572300,0.02,27868.0,27867.0,0.3180358]
[1680577572528,0.07748,27871.0,27867.0,0.3170358]
[1680577572529,0.10991554,27871.0,27867.0,0.3170358]
[1680577573649,0.12991554,27871.0,27867.0,0.3180358]
[1680577574962,0.12991554,27871.0,27867.0,0.34985738]
[1680577575157,0.12991554,27871.0,27868.0,0.35197652]
[1680577576345,0.10991554,27871.0,27868.0,0.35197652]
[1680577576590,0.13373554,27871.0,27868.0,0.35315652]
[1680577576826,0.13373554,27871.0,27870.0,0.00077418]
[1680577576827,0.13391554,27871.0,27870.0,0.00077418]
[1680577577477,0.10148,27871.0,27870.0,0.00077418]
[1680577577698,0.0773,27871.0,27870.0,0.00077418]
[1680577577923,0.0993,27871.0,27870.0,0.00177418]
[1680577578363,0.0773,27871.0,27870.0,0.00077418]
[1680577579290,0.0993,27871.0,27870.0,0.00177418]
[1680577581217,0.0773,27871.0,27870.0,0.00077418]
[1680577581447,0.03462209,27872.0,27870.0,0.00077418]
[1680577581448,0.11192209,27872.0,27870.0,0.00077418]
[1680577582337,0.11192209,27872.0,27870.0,0.00177418]
[1680577582338,0.022,27871.0,27870.0,0.00177418]
[1680577582560,0.11210209,27872.0,27870.0,0.00077418]
[1680577582781,0.13392209,27872.0,27870.0,0.00177418]
[1680577582979,0.13392209,27872.0,27870.0,0.00077418]
[1680577582980,0.11210209,27872.0,27870.0,0.00077418]
[1680577583094,0.11192209,27872.0,27870.0,0.00077418]
[1680577583322,0.022,27871.0,27870.0,0.00177418]
[1680577583530,0.11210209,27872.0,27870.0,0.00077418]
[1680577583768,0.13392209,27872.0,27870.0,0.00177418]
[1680577583983,0.11210209,27872.0,27870.0,0.00077418]
[1680577584202,0.022,27871.0,27870.0,0.00177418]
[1680577585081,0.11210209,27872.0,27870.0,0.00077418]
[1680577585313,0.13392209,27872.0,27870.0,0.00177418]
[1680577585534,0.13410209,27872.0,27870.0,0.00077418]
[1680577585754,0.022,27871.0,27870.0,0.00177418]
[1680577585981,0.11210209,27872.0,27870.0,0.00077418]
[1680577586201,0.13392209,27872.0,27870.0,0.00177418]
[1680577586415,0.11210209,27872.0,27870.0,0.00077418]
[1680577586643,0.022,27871.0,27870.0,0.00177418]
[1680577587085,0.11192209,27872.0,27870.0,0.00077418]
[1680577587523,0.007175,27871.0,27870.0,0.00077418]
[1680577587760,0.11927709,27872.0,27870.0,0.00077418]
[1680577587989,0.13392209,27872.0,27870.0,0.00177418]
[1680577588215,0.13410209,27872.0,27870.0,0.00077418]
[1680577588416,0.022,27871.0,27870.0,0.00177418]
[1680577588647,0.11210209,27872.0,27870.0,0.00077418]
[1680577588923,0.11192209,27872.0,27870.0,0.00077418]
[1680577589149,0.13392209,27872.0,27870.0,0.00077418]
[1680577589369,0.022,27871.0,27870.0,0.00177418]
[1680577589803,0.11192209,27872.0,27870.0,0.00077418]
[1680577590034,0.11192209,27872.0,27870.0,0.00177418]
[1680577590035,0.13392209,27872.0,27870.0,0.00177418]
[1680577590260,0.13410209,27872.0,27870.0,0.00177418]
[1680577590477,0.13392209,27872.0,27870.0,0.00177418]
[1680577590928,0.11192209,27872.0,27870.0,0.00077418]
[1680577591155,0.022,27871.0,27870.0,0.00177418]
[1680577591615,0.022,27871.0,27870.0,0.00077418]
[1680577591805,0.11210209,27872.0,27870.0,0.00077418]
[1680577592024,0.13392209,27872.0,27870.0,0.00077418]
[1680577592236,0.13410209,27872.0,27870.0,0.00077418]
[1680577592447,0.022,27871.0,27870.0,0.00177418]
[1680577592669,0.11210209,27872.0,27870.0,0.00077418]
[1680577592893,0.13392209,27872.0,27870.0,0.00177418]
[1680577593556,0.13392209,27872.0,27870.0,0.00171235]
[1680577593991,0.11192209,27872.0,27870.0,0.00071235]
[1680577594212,0.022,27871.0,27870.0,0.00171235]
[1680577594428,0.022,27871.0,27870.0,0.00071235]
[1680577594652,0.022,27871.0,27870.0,0.46319873]
[1680577595123,0.022,27871.0,27870.0,0.51342973]
[1680577595346,0.11210209,27872.0,27870.0,0.51242973]
[1680577595585,0.022,27871.0,27870.0,0.46319873]
[1680577596715,0.022,27871.0,27870.0,0.51209273]
[1680577596930,0.022,27871.0,27870.0,0.46319873]
[1680577597586,0.022,27871.0,27870.0,0.46337873]
[1680577597805,1.31346181,27871.0,27870.0,0.46337873]
[1680577598022,1.31364181,27871.0,27870.0,0.46337873]
[1680577598336,1.31364181,27871.0,27870.0,0.46319873]
[1680577600733,1.31364181,27871.0,27870.0,0.46337873]
[1680577600945,0.02218,27871.0,27870.0,0.46337873]
[1680577601171,0.022,27871.0,27870.0,0.46337873]
[1680577601386,1.31345229,27871.0,27870.0,0.46337873]
[1680577601743,1.31363229,27871.0,27870.0,0.46337873]
[1680577601940,1.31363229,27871.0,27870.0,0.46319873]
[1680577602158,0.02218,27871.0,27870.0,0.46319873]
[1680577602359,0.022,27871.0,27870.0,0.46319873]
[1680577603340,0.022,27871.0,27870.0,0.46337873]
[1680577604045,0.022,27871.0,27870.0,0.46319873]
[1680577605545,0.022,27871.0,27870.0,0.54927579]
[1680577605766,0.022,27871.0,27870.0,0.54909579]
[1680577607158,0.022,27871.0,27870.0,0.46319873]
[1680577607592,0.022,27871.0,27870.0,0.67778806]
[1680577607816,0.022,27871.0,27870.0,0.59843779]
[1680577608037,0.022,27871.0,27870.0,0.54909579]
[1680577608697,0.03811808,27873.0,27870.0,0.54809579]
[1680577608924,0.03811808,27873.0,27871.0,0.0858905]
[1680577609786,0.04511808,27873.0,27871.0,0.0868905]
[1680577614665,0.05229308,27873.0,27871.0,0.0868905]
[1680577615045,0.04511808,27873.0,27871.0,0.0868905]
[1680577621037,0.05229308,27873.0,27871.0,0.0868905]
[1680577621276,0.04511808,27873.0,27871.0,0.0868905]
[1680577625721,0.04511808,27873.0,27872.0,0.048947]
[1680577626266,1.33646587,27873.0,27871.0,0.0868905]
[1680577626483,0.04529808,27873.0,27871.0,0.0868905]
[1680577627913,0.04511808,27873.0,27871.0,0.21558277]
[1680577628325,0.35621063,27872.0,27871.0,0.0859464]
[1680577628568,1.55599507,27872.0,27870.0,0.00089235]
[1680577628787,1.46865325,27871.0,27870.0,0.00071235]
[1680577629002,1.47582825,27871.0,27870.0,0.00071235]
[1680577629856,1.47600825,27871.0,27870.0,0.00071235]
[1680577630076,1.47700825,27871.0,27870.0,0.00071235]
[1680577635961,1.47682825,27871.0,27870.0,0.00071235]
[1680577637036,1.47700825,27871.0,27870.0,0.00071235]
[1680577637702,1.47682825,27871.0,27870.0,0.00071235]
[1680577638353,1.47700825,27871.0,27870.0,0.00071235]
[1680577638662,1.48577725,27871.0,27870.0,0.00071235]
[1680577638873,1.47700825,27871.0,27870.0,0.00071235]
[1680577639091,1.48611725,27871.0,27870.0,0.00071235]
[1680577639651,1.46983325,27871.0,27870.0,0.00071235]
[1680577639919,0.085555,27871.0,27870.0,0.00071235]
[1680577640141,0.085375,27871.0,27870.0,0.00071235]
[1680577640369,0.085375,27871.0,27870.0,0.42254877]
[1680577640557,0.001,27871.0,27870.0,0.42254877]
[1680577640994,0.008175,27871.0,27870.0,0.42254877]
[1680577641332,0.008175,27871.0,27870.0,0.35970143]
[1680577641559,0.00805799,27871.0,27870.0,0.36013329]
[1680577641750,0.00184929,27871.0,27870.0,0.36013329]
[1680577641986,0.007175,27871.0,27870.0,0.36013329]
[1680577645456,0.007175,27871.0,27870.0,0.36031329]
[1680577645973,0.007175,27871.0,27870.0,0.36025329]
[1680577646197,0.007175,27871.0,27870.0,0.36013329]
[1680577646765,1.29864084,27871.0,27870.0,0.36013329]
[1680577646988,1.29864084,27871.0,27870.0,0.36031329]
[1680577647609,1.30711684,27871.0,27870.0,0.36031329]
[1680577648060,1.29864084,27871.0,27870.0,0.36031329]
[1680577648248,1.29862795,27871.0,27870.0,0.36031329]
[1680577648466,1.30709595,27871.0,27870.0,0.36031329]
[1680577648907,1.29862795,27871.0,27870.0,0.36031329]
[1680577649125,1.30765195,27871.0,27870.0,0.36031329]
[1680577649612,1.29862795,27871.0,27870.0,0.36031329]
[1680577649833,1.30723595,27871.0,27870.0,0.36031329]
[1680577654501,1.29862795,27871.0,27870.0,0.36031329]
[1680577655318,1.30751195,27871.0,27870.0,0.36031329]
[1680577655732,1.29145295,27871.0,27870.0,0.36031329]
[1680577655936,0.007355,27872.0,27870.0,0.36031329]
[1680577656075,0.007175,27872.0,27870.0,0.36013329]
[1680577657432,0.009175,27871.0,27870.0,0.36013329]
[1680577657621,0.01635,27871.0,27870.0,0.36013329]
[1680577657844,0.007175,27872.0,27871.0,0.45307128]
[1680577658014,0.007175,27872.0,27871.0,0.45325128]
[1680577658232,0.016218,27872.0,27871.0,0.45325128]
[1680577658414,0.016128,27872.0,27871.0,0.45325128]
[1680577658777,0.007175,27872.0,27871.0,0.45325128]
[1680577659006,0.016721,27872.0,27871.0,0.45325128]
[1680577659231,0.016721,27872.0,27871.0,0.45313128]
[1680577659636,0.023721,27872.0,27871.0,0.45407128]
[1680577660283,0.014175,27872.0,27871.0,0.45407128]
[1680577661055,0.100272,27872.0,27871.0,0.001]
[1680577661913,0.127809,27872.0,27871.0,0.001]
[1680577663906,0.091475,27872.0,27871.0,0.001]
[1680577664365,0.100212,27872.0,27871.0,0.001]
[1680577665999,0.100212,27872.0,27871.0,0.43250948]
[1680577666262,0.091475,27872.0,27871.0,0.43250948]
[1680577666535,0.091475,27872.0,27871.0,0.38099986]
[1680577667526,0.091475,27872.0,27871.0,0.38117986]
[1680577667965,0.0843,27872.0,27871.0,0.38099986]
[1680577669272,0.0843,27872.0,27871.0,0.38117986]
[1680577669706,0.091475,27872.0,27871.0,0.38117986]
[1680577670177,0.091475,27872.0,27871.0,0.00118]
[1680577670409,0.13112562,27872.0,27871.0,0.001]
[1680577674777,0.13118662,27872.0,27871.0,0.001]
[1680577675846,1.42263569,27872.0,27871.0,0.001]
[1680577676079,1.42263569,27872.0,27871.0,0.00143186]
[1680577684358,1.33816069,27872.0,27871.0,0.00143186]
[1680577684574,1.34551569,27872.0,27871.0,0.00143186]
[1680577685758,1.34533569,27872.0,27871.0,0.00143186]
[1680577688885,1.34551569,27872.0,27871.0,0.00143186]
[1680577689923,1.34533569,27872.0,27871.0,0.00143186]
[1680577692870,1.34545569,27872.0,27871.0,0.00143186]
[1680577693088,1.34533569,27872.0,27871.0,0.00143186]
[1680577693828,1.33650769,27872.0,27871.0,0.00143186]
[1680577694085,1.34527069,27872.0,27871.0,0.00143186]
[1680577694746,1.33650769,27872.0,27871.0,0.00143186]
[1680577695314,1.34528669,27872.0,27871.0,0.00143186]
[1680577696648,1.33650769,27872.0,27871.0,0.00143186]
[1680577697504,1.33668769,27872.0,27871.0,0.00143186]
[1680577697919,1.33650769,27872.0,27871.0,0.00143186]
[1680577700487,1.34551169,27872.0,27871.0,0.00143186]
[1680577700653,1.33650769,27872.0,27871.0,0.00143186]
[1680577701227,1.34536169,27872.0,27871.0,0.00143186]
[1680577701350,1.33650769,27872.0,27871.0,0.00143186]
[1680577701569,1.33668769,27872.0,27871.0,0.00143186]
[1680577702423,1.33668769,27872.0,27871.0,0.001]
[1680577702848,1.33650769,27872.0,27871.0,0.00118]
[1680577703052,1.33650769,27872.0,27871.0,0.0871264]
[1680577705449,1.33668769,27872.0,27871.0,0.0869464]
[1680577705779,1.30580407,27872.0,27871.0,0.0869464]
[1680577706013,1.29862907,27872.0,27871.0,0.0869464]
[1680577706400,1.29844907,27872.0,27871.0,0.0871264]
[1680577706829,1.30562407,27872.0,27871.0,0.0871264]
[1680577707020,1.29844907,27872.0,27871.0,0.0871264]
[1680577708538,1.31455507,27872.0,27871.0,0.0871264]
[1680577708758,1.31425407,27872.0,27871.0,0.0871264]
[1680577709204,1.30562407,27872.0,27871.0,0.0871264]
[1680577709433,1.31453807,27872.0,27871.0,0.0871264]
[1680577709687,1.30519221,27872.0,27871.0,0.0869464]
[1680577709879,1.31405721,27872.0,27871.0,0.0869464]
[1680577710368,1.30519221,27872.0,27871.0,0.0869464]
[1680577711724,1.29801721,27872.0,27871.0,0.0869464]
[1680577712703,1.29801721,27872.0,27871.0,0.48956096]
[1680577712959,1.29801721,27872.0,27871.0,0.48974096]
[1680577713472,0.00656814,27872.0,27871.0,0.53248683]
[1680577713715,0.00656814,27872.0,27871.0,0.53230683]
[1680577713937,1.29795949,27872.0,27871.0,1.04199778]
[1680577714183,1.30681249,27872.0,27871.0,1.04217778]
[1680577714847,1.30654849,27872.0,27871.0,1.04217778]
[1680577715077,1.29795949,27872.0,27871.0,1.04217778]
[1680577715317,1.29795949,27872.0,27871.0,0.95622462]
[1680577715542,0.01559814,27872.0,27871.0,0.61842722]
[1680577715768,0.00656814,27872.0,27871.0,0.61824722]
[1680577716212,0.00656814,27872.0,27871.0,0.95604119]
[1680577717580,0.00656814,27872.0,27871.0,0.95622119]
[1680577717820,0.00656814,27872.0,27871.0,0.95604119]
[1680577719402,0.00656814,27872.0,27871.0,0.95622119]
[1680577719622,0.00656814,27872.0,27871.0,0.95604119]
[1680577721541,0.00656814,27872.0,27871.0,1.04193973]
[1680577721761,0.00656814,27872.0,27871.0,0.95604119]
[1680577723551,0.00656814,27872.0,27871.0,1.04193174]
[1680577724401,0.00656814,27872.0,27871.0,0.61819738]
[1680577727054,0.00656814,27872.0,27871.0,0.61837738]
[1680577727259,0.00656814,27872.0,27871.0,0.48968511]
[1680577728272,0.00656814,27872.0,27871.0,0.61837738]
[1680577729228,0.00656814,27872.0,27871.0,0.61819738]
[1680577730227,0.00656814,27872.0,27871.0,0.61818696]
[1680577734177,0.00656814,27872.0,27871.0,1.04190909]
[1680577734410,0.00656814,27872.0,27871.0,1.09289409]
[1680577734845,0.00656814,27872.0,27871.0,0.61818696]
[1680577735470,0.00656814,27872.0,27871.0,1.0419078]
[1680577735709,0.00656814,27872.0,27871.0,0.61818696]
[1680577736148,0.00656814,27872.0,27871.0,1.04190718]
[1680577736366,0.00656814,27872.0,27871.0,0.66759396]
[1680577736611,0.00656814,27872.0,27871.0,1.04190879]
[1680577736835,0.00656814,27872.0,27871.0,1.00537166]
[1680577737777,0.00656814,27872.0,27871.0,0.95602866]
[1680577737989,0.00656814,27872.0,27871.0,1.00374466]
[1680577738414,0.00656814,27872.0,27871.0,1.00392466]
[1680577739026,0.00656814,27872.0,27871.0,1.00374466]
[1680577740278,0.00656814,27872.0,27871.0,0.95602866]
[1680577740489,0.00656814,27872.0,27871.0,1.00909866]
[1680577741395,0.00656814,27872.0,27871.0,0.95602866]
[1680577741915,0.00656814,27872.0,27871.0,1.00630866]
[1680577742334,0.00656814,27872.0,27871.0,0.95602866]
[1680577742543,0.00656814,27872.0,27871.0,1.00672466]
[1680577743445,0.00656814,27872.0,27871.0,1.17831153]
[1680577743678,0.00656814,27872.0,27871.0,1.55581153]
[1680577744121,0.00656814,27872.0,27871.0,1.38422466]
[1680577744306,0.00656814,27872.0,27871.0,1.55581153]
[1680577745296,0.00656814,27872.0,27871.0,1.42711926]
[1680577745501,0.00656814,27872.0,27871.0,1.55598164]
[1680577746715,0.00656814,27872.0,27871.0,1.50528564]
[1680577746938,0.00656814,27872.0,27871.0,1.55386264]
[1680577747490,0.00656814,27872.0,27871.0,1.42500026]
[1680577747714,0.00656814,27872.0,27871.0,1.37642326]
[1680577747980,0.00656814,27872.0,27871.0,1.12779405]
[1680577749882,0.00656814,27872.0,27871.0,1.12797405]
[1680577750345,0.04450382,27873.0,27871.0,1.12697405]
[1680577750557,0.001,27872.0,27871.0,0.70325222]
[1680577750775,0.001,27872.0,27871.0,1.12678449]
[1680577751429,0.001,27872.0,27871.0,0.9979137]
[1680577752319,0.04450382,27873.0,27871.0,0.9979137]
[1680577752587,0.007175,27873.0,27872.0,0.21488698]
[1680577753133,0.007175,27874.0,27872.0,0.21488698]
[1680577753355,0.007175,27874.0,27873.0,0.00071235]
[1680577753671,1.29848764,27874.0,27873.0,0.08666714]
[1680577753939,1.30764664,27874.0,27873.0,0.08666714]
[1680577754466,1.32564664,27874.0,27873.0,0.08866714]
[1680577754967,1.32582664,27874.0,27873.0,0.08795044]
[1680577755754,1.31666764,27874.0,27873.0,0.08795044]
[1680577756533,1.32561864,27874.0,27873.0,0.08795044]
[1680577757748,1.31666764,27874.0,27873.0,0.08795044]
[1680577758205,1.32545164,27874.0,27873.0,0.08795044]
[1680577758425,1.31666764,27874.0,27873.0,0.08795044]
[1680577760053,1.32569464,27874.0,27873.0,0.08795044]
[1680577762604,1.32566964,27874.0,27873.0,0.08795044]
[1680577763677,1.31648764,27874.0,27873.0,0.08795044]
[1680577763891,1.31666764,27874.0,27873.0,0.08795044]
[1680577764788,1.32533564,27874.0,27873.0,0.08795044]
[1680577765006,1.31666764,27874.0,27873.0,0.08795044]
[1680577766134,1.31666764,27874.0,27873.0,0.13883444]
[1680577766351,1.31666764,27874.0,27873.0,0.08795044]
[1680577767271,1.31666764,27874.0,27873.0,0.21688263]
[1680577767498,1.31666764,27874.0,27873.0,0.26743563]
[1680577767947,1.31666764,27874.0,27873.0,0.69113801]
[1680577768160,1.31666764,27874.0,27873.0,0.60518757]
[1680577768760,1.31666764,27874.0,27873.0,0.26749345]
[1680577769090,1.31666764,27874.0,27873.0,0.55463735]
[1680577769490,1.31666764,27874.0,27873.0,0.21694297]
[1680577769689,1.30949264,27874.0,27873.0,0.67715561]
[1680577769886,1.30949264,27874.0,27873.0,1.10086003]
[1680577770257,1.30949264,27874.0,27873.0,1.14955803]
[1680577770508,1.30949264,27874.0,27873.0,0.67715561]
[1680577770752,1.30949264,27874.0,27873.0,1.10085826]
[1680577771000,1.30949264,27874.0,27873.0,0.67715561]
[1680577772716,1.30949264,27874.0,27873.0,1.10085825]
[1680577772970,1.30949264,27874.0,27873.0,1.10085823]
[1680577773218,1.31666764,27874.0,27873.0,1.10085958]
[1680577773461,1.31666764,27874.0,27873.0,1.1008596]
[1680577773717,1.30949264,27874.0,27873.0,1.0148488]
[1680577773981,1.30949264,27874.0,27873.0,1.01484885]
[1680577774210,1.30949264,27874.0,27873.0,0.67715499]
[1680577774473,1.30949264,27874.0,27873.0,1.01484734]
[1680577775517,1.30931264,27874.0,27873.0,1.01502734]
[1680577776309,1.30931264,27874.0,27873.0,1.06429034]
[1680577776588,1.30931264,27874.0,27873.0,1.01502734]
[1680577778478,1.30931264,27874.0,27873.0,1.06675934]
[1680577778680,1.30931264,27874.0,27873.0,1.01502734]
[1680577779453,0.018,27874.0,27873.0,1.01502734]
[1680577779768,0.018,27874.0,27873.0,1.06583334]
[1680577780024,0.018,27874.0,27873.0,1.01484734]
[1680577781819,0.018,27874.0,27873.0,1.06146334]
[1680577782038,0.018,27874.0,27873.0,1.23305021]
[1680577782252,0.018,27874.0,27873.0,1.06146334]
[1680577782923,0.018,27874.0,27873.0,1.10411802]
[1680577783570,0.018,27874.0,27873.0,1.23309874]
[1680577783775,0.018,27874.0,27873.0,1.23801187]
[1680577783991,0.018,27874.0,27873.0,1.05750202]
[1680577785679,0.018,27874.0,27873.0,1.11096202]
[1680577785900,0.018,27874.0,27873.0,1.05768202]
[1680577786359,0.018,27874.0,27873.0,1.18665853]
[1680577786601,0.018,27874.0,27873.0,1.05750202]
[1680577787903,0.018,27874.0,27873.0,1.18647089]
[1680577788542,0.018,27874.0,27873.0,1.22807089]
[1680577788660,0.018,27874.0,27873.0,1.22825089]
[1680577788860,0.018,27874.0,27873.0,1.09928202]
[1680577789080,0.018,27874.0,27873.0,1.09910202]
[1680577789291,0.018,27874.0,27873.0,1.22806262]
[1680577789723,0.018,27874.0,27873.0,1.22849445]
[1680577790520,0.018,27874.0,27873.0,1.14833985]
[1680577790750,0.018,27874.0,27873.0,1.09953385]
[1680577791802,0.018,27874.0,27873.0,1.09971385]